bitfinex/quotes_BTCUSD_20250714
["timestamp","ask_amount","ask_price","bid_price","bid_amount"]
[1752532208129,0.21477001,120290.0,120280.0,0.59700895]
[1752532208985,0.08861001,120290.0,120280.0,0.59700895]
[1752532209202,0.21473001,120290.0,120280.0,0.23316708]
[1752532209437,0.72111983,120290.0,120280.0,0.02]
[1752532209910,0.84727983,120290.0,120280.0,0.02]
[1752532212504,0.84627983,120290.0,120280.0,0.02]
[1752532212892,0.84827983,120290.0,120280.0,0.02]
[1752532214905,0.38987796,120290.0,120280.0,0.02]
[1752532215114,0.72211983,120290.0,120280.0,0.02]
[1752532215324,0.84823983,120290.0,120280.0,0.02]
[1752532216168,0.51599796,120290.0,120280.0,0.02]
[1752532216580,0.84823983,120290.0,120280.0,0.02]
[1752532217007,0.51599796,120290.0,120280.0,0.02]
[1752532217193,0.84823983,120290.0,120280.0,0.02]
[1752532219105,0.72211983,120290.0,120280.0,0.02]
[1752532219320,0.84827983,120290.0,120280.0,0.02]
[1752532222595,0.80343717,120290.0,120280.0,0.02]
[1752532222752,0.72211983,120290.0,120280.0,0.02]
[1752532222948,0.84823983,120290.0,120280.0,0.02]
[1752532223188,0.72211983,120290.0,120280.0,0.02]
[1752532223391,0.84823983,120290.0,120280.0,0.02]
[1752532224827,0.84819983,120290.0,120280.0,0.02]
[1752532225290,0.72211983,120290.0,120280.0,0.02]
[1752532225518,0.84819983,120290.0,120280.0,0.02]
[1752532231383,0.72211983,120290.0,120280.0,0.02]
[1752532231663,0.92947717,120290.0,120280.0,0.02]
[1752532231935,0.84815983,120290.0,120280.0,0.02]
[1752532232555,0.72211983,120290.0,120280.0,0.02]
[1752532232766,0.84815983,120290.0,120280.0,0.02]
[1752532233393,0.72211983,120290.0,120280.0,0.02]
[1752532233551,0.84815983,120290.0,120280.0,0.02]
[1752532239475,0.84648983,120290.0,120280.0,0.02]
[1752532241492,0.84811983,120290.0,120280.0,0.02]
[1752532242621,0.72211983,120290.0,120280.0,0.02]
[1752532242812,0.84811983,120290.0,120280.0,0.02]
[1752532243614,0.84644983,120290.0,120280.0,0.02]
[1752532247453,0.70404983,120290.0,120280.0,0.02]
[1752532247665,0.48176796,120290.0,120280.0,0.04581709]
[1752532247875,0.48176796,120290.0,120280.0,0.06171709]
[1752532248266,0.35384796,120290.0,120280.0,0.04111]
[1752532248509,0.47980796,120290.0,120280.0,0.22278868]
[1752532248728,0.47980796,120290.0,120280.0,0.23110261]
[1752532248941,0.47980796,120290.0,120280.0,0.24773019]
[1752532249126,0.47980796,120290.0,120280.0,0.23941647]
[1752532249376,0.47980796,120290.0,120280.0,0.24773019]
[1752532249714,0.47149507,120290.0,120280.0,0.24773019]
[1752532249911,0.46318197,120290.0,120280.0,0.23941647]
[1752532250509,0.46318197,120290.0,120280.0,0.23110261]
[1752532250720,0.46318197,120290.0,120280.0,0.06482393]
[1752532250924,0.46318197,120290.0,120280.0,0.05651]
[1752532254067,0.46318197,120290.0,120280.0,0.02]
[1752532254068,0.76915118,120290.0,120280.0,0.02]
[1752532254308,0.78672118,120290.0,120280.0,0.02]
[1752532254515,1.12672118,120290.0,120280.0,0.02]
[1752532254727,1.25288118,120290.0,120280.0,0.02]
[1752532255113,1.12672118,120290.0,120280.0,0.02]
[1752532255321,1.25292118,120290.0,120280.0,0.02]
[1752532257185,1.17168384,120290.0,120280.0,0.02]
[1752532258681,0.83944197,120290.0,120280.0,0.02]
[1752532258859,1.17168384,120290.0,120280.0,0.02]
[1752532260065,1.17001384,120290.0,120280.0,0.02]
[1752532260373,1.04373384,120290.0,120280.0,0.02]
[1752532260579,1.17029384,120290.0,120280.0,0.02]
[1752532260820,1.04373384,120290.0,120280.0,0.02]
[1752532261010,1.17029384,120290.0,120280.0,0.02]
[1752532262811,1.18119508,120290.0,120280.0,0.02]
[1752532265729,1.05463508,120290.0,120280.0,0.02]
[1752532265950,1.18294508,120290.0,120280.0,0.02]
[1752532266379,1.23294508,120290.0,120280.0,0.02]
[1752532268292,1.10630508,120290.0,120280.0,0.02]
[1752532268494,1.23294508,120290.0,120280.0,0.02]
[1752532272188,0.90070321,120290.0,120280.0,0.02]
[1752532272407,1.04373384,120290.0,120280.0,0.02]
[1752532272619,1.17073384,120290.0,120280.0,0.02]
[1752532275352,1.17069384,120290.0,120280.0,0.02]
[1752532278124,1.15475384,120290.0,120280.0,0.02]
[1752532284719,1.13831384,120290.0,120280.0,0.04171]
[1752532285145,1.13831384,120290.0,120280.0,0.02314]
[1752532286383,1.13831384,120290.0,120280.0,0.02]
[1752532288248,1.33779384,120290.0,120280.0,0.02]
[1752532290244,1.33582384,120290.0,120280.0,0.05783]
[1752532290490,1.20894384,120290.0,120280.0,0.05783]
[1752532290714,1.00346197,120290.0,120280.0,0.05783]
[1752532290952,0.87670197,120290.0,120280.0,0.05783]
[1752532291177,1.00346197,120290.0,120280.0,0.05783]
[1752532291420,1.00346197,120290.0,120280.0,0.61281843]
[1752532291647,1.00346197,120290.0,120280.0,0.05783]
[1752532301619,0.87670197,120290.0,120280.0,0.05783]
[1752532301894,1.00338197,120290.0,120280.0,0.05783]
[1752532302146,1.21092384,120290.0,120280.0,0.02]
[1752532302493,1.33760384,120290.0,120280.0,0.02]
[1752532302763,0.67920197,120290.0,120280.0,0.023]
[1752532303046,0.80588197,120290.0,120280.0,0.04053]
[1752532304015,0.80390197,120290.0,120280.0,0.05713]
[1752532305597,0.67722197,120290.0,120280.0,0.05713]
[1752532305843,0.80410197,120290.0,120280.0,0.05713]
[1752532307112,0.67722197,120290.0,120280.0,0.05713]
[1752532307323,0.80406197,120290.0,120280.0,0.05713]
[1752532308066,0.80406197,120290.0,120280.0,0.22340868]
[1752532308277,0.80406197,120290.0,120280.0,0.05713]
[1752532308497,0.80406197,120290.0,120280.0,0.22340868]
[1752532308720,0.80402197,120290.0,120280.0,0.22340868]
[1752532308958,0.67722197,120290.0,120280.0,0.05713]
[1752532309191,0.80482197,120290.0,120280.0,0.05713]
[1752532309865,0.80680197,120290.0,120280.0,0.04053]
[1752532310166,0.80680197,120290.0,120280.0,0.02503]
[1752532310382,1.02504498,120290.0,120280.0,0.02]
[1752532310605,0.67920197,120290.0,120280.0,0.02]
[1752532310826,0.80680197,120290.0,120280.0,0.02]
[1752532311042,0.80740197,120290.0,120280.0,0.02]
[1752532312339,0.80740197,120290.0,120280.0,0.023]
[1752532312971,0.80740197,120290.0,120280.0,0.02503]
[1752532314917,0.80740197,120290.0,120280.0,0.02]
[1752532315173,1.23708118,120290.0,120280.0,0.02]
[1752532315778,1.15576384,120290.0,120280.0,0.02]
[1752532316401,1.13976384,120290.0,120280.0,0.02]
[1752532316745,0.80756197,120290.0,120280.0,0.02]
[1752532316944,0.87864197,120290.0,120280.0,0.02]
[1752532317158,1.02224197,120290.0,120280.0,0.02]
[1752532317549,1.35448384,120290.0,120280.0,0.02]
[1752532318013,1.45190118,120290.0,120280.0,0.02]
[1752532319120,1.47517118,120290.0,120280.0,0.02]
[1752532319344,1.60361118,120290.0,120280.0,0.02]
[1752532319892,1.47517118,120290.0,120280.0,0.02]
[1752532320358,1.61815203,120290.0,120280.0,0.02]
[1752532320576,1.66815203,120290.0,120280.0,0.02]
[1752532320921,1.66819203,120290.0,120280.0,0.02]
[1752532323254,1.25300282,120290.0,120280.0,0.02]
[1752532323464,0.90994197,120290.0,120280.0,0.02]
[1752532323673,1.50460384,120290.0,120280.0,0.02]
[1752532327429,1.37608384,120290.0,120280.0,0.02]
[1752532327630,1.48944384,120290.0,120280.0,0.02]
[1752532329322,1.57076118,120290.0,120280.0,0.02]
[1752532329932,1.23851931,120290.0,120280.0,0.02]
[1752532330237,1.48944384,120290.0,120280.0,0.02]
[1752532330464,1.50534384,120290.0,120280.0,0.02]
[1752532332853,1.39435384,120290.0,120280.0,0.02]
[1752532333124,0.18292125,120270.0,120260.0,0.02]
[1752532333328,1.12019023,120270.0,120260.0,0.02]
[1752532333645,1.36767842,120270.0,120260.0,1e-08]
[1752532333800,1.92139942,120270.0,120260.0,1e-08]
[1752532334422,1.79263942,120270.0,120260.0,1e-08]
[1752532334668,1.92147942,120270.0,120260.0,1e-08]
[1752532335561,1.92925208,120270.0,120260.0,1e-08]
[1752532335770,1.92147942,120270.0,120260.0,0.00100001]
[1752532335975,1.92147942,120270.0,120260.0,1e-08]
[1752532336727,1.92447942,120270.0,120260.0,1e-08]
[1752532337148,1.41768764,120270.0,120260.0,1e-08]
[1752532337385,1.60148763,120270.0,120260.0,1e-08]
[1752532337609,1.97612489,120270.0,120260.0,1e-08]
[1752532338061,1.97620489,120270.0,120260.0,1e-08]
[1752532338271,1.81269363,120270.0,120260.0,1e-08]
[1752532338396,1.94157363,120270.0,120260.0,1e-08]
[1752532339014,0.7729269,120240.0,120230.0,1e-08]
[1752532339316,1.73115509,120240.0,120230.0,0.0001531]
[1752532339712,1.75612009,120240.0,120230.0,0.0001531]
[1752532340268,1.77791009,120240.0,120230.0,0.0001531]
[1752532340757,1.77642009,120240.0,120230.0,0.0001531]
[1752532341803,1.76012009,120240.0,120230.0,0.0001531]
[1752532342578,1.63120009,120240.0,120230.0,0.0001531]
[1752532342792,1.54988275,120240.0,120230.0,0.0001531]
[1752532343152,1.67884275,120240.0,120230.0,0.0032131]
[1752532343780,1.67884275,120240.0,120230.0,0.0001531]
[1752532343781,1.67888275,120240.0,120230.0,0.0001531]
[1752532344427,1.06548088,120240.0,120230.0,0.0213831]
[1752532344655,1.19448088,120240.0,120230.0,0.0377831]
[1752532344880,1.39772275,120240.0,120230.0,0.0377831]
[1752532345129,0.65634783,120230.0,120210.0,0.03553]
[1752532345344,0.71734859,120220.0,120210.0,0.03604051]
[1752532345549,0.71734859,120220.0,120210.0,0.03807051]
[1752532345802,0.95524659,120220.0,120210.0,0.00051051]
[1752532346006,1.16572393,120220.0,120210.0,0.00051051]
[1752532346217,1.16576393,120220.0,120210.0,0.00051051]
[1752532346650,1.16576393,120220.0,120210.0,0.00151051]
[1752532346651,0.95524659,120220.0,120210.0,0.00151051]
[1752532346860,0.95323659,120220.0,120210.0,0.00657051]
[1752532347065,0.95323659,120220.0,120210.0,0.03817051]
[1752532347257,1.08239659,120220.0,120210.0,0.03817051]
[1752532347671,0.75015472,120220.0,120210.0,0.03817051]
[1752532347975,1.08239659,120220.0,120210.0,0.03817051]
[1752532348275,1.18235659,120220.0,120210.0,0.03817051]
[1752532349118,1.05319659,120220.0,120210.0,0.03817051]
[1752532349321,1.18231659,120220.0,120210.0,0.03717051]
[1752532349529,1.05319659,120220.0,120210.0,0.04117051]
[1752532349752,1.26371393,120220.0,120210.0,0.04117051]
[1752532350566,1.18239659,120220.0,120210.0,0.04117051]
[1752532350768,1.05319659,120220.0,120210.0,0.04117051]
[1752532350971,1.18235659,120220.0,120210.0,0.04117051]
[1752532351172,1.05319659,120220.0,120210.0,0.04117051]
[1752532351410,1.18235659,120220.0,120210.0,0.04117051]
[1752532351553,1.26367393,120220.0,120210.0,0.04117051]
[1752532352567,1.13649393,120220.0,120210.0,0.00451051]
[1752532352787,1.28167393,120220.0,120210.0,0.00451051]
[1752532352993,1.26557393,120220.0,120210.0,0.00451051]
[1752532353477,1.13649393,120220.0,120210.0,1e-08]
[1752532353684,1.31261478,120220.0,120210.0,1e-08]
[1752532353854,1.18520478,120220.0,120210.0,1e-08]
[1752532354235,1.31428478,120220.0,120210.0,1e-08]
[1752532354495,0.32469413,120210.0,120200.0,1e-08]
[1752532354699,0.32469413,120210.0,120190.0,0.0321]
[1752532354700,0.51470867,120200.0,120190.0,0.0321]
[1752532355017,0.17472321,120190.0,120180.0,0.0515]
[1752532355236,0.81731219,120190.0,120180.0,0.05353]
[1752532355462,0.68827219,120190.0,120180.0,0.05353]
[1752532355741,0.71324319,120190.0,120180.0,0.05353]
[1752532355973,0.84228319,120190.0,120180.0,0.05353]
[1752532356605,0.71424319,120190.0,120180.0,0.05656]
[1752532356835,0.84332319,120190.0,120180.0,0.05656]
[1752532357057,0.84332319,120190.0,120160.0,0.06571112]
[1752532357058,0.51531534,120170.0,120160.0,0.06571112]
[1752532357277,0.17476683,120160.0,120150.0,0.0004]
[1752532357491,0.58835581,120160.0,120150.0,0.0004]
[1752532357717,0.71743581,120160.0,120150.0,0.00243]
[1752532358178,0.39351596,120160.0,120150.0,0.00243]
[1752532358396,0.39402552,120160.0,120150.0,0.00243]
[1752532359041,0.39402552,120160.0,120150.0,0.18024145]
[1752532359255,0.39402539,120160.0,120150.0,0.00546]
[1752532359706,0.39402539,120160.0,120150.0,0.00746]
[1752532359935,0.69714726,120160.0,120150.0,0.00443]
[1752532360157,0.69714726,120160.0,120150.0,1e-08]
[1752532360158,1.47165647,120160.0,120150.0,1e-08]
[1752532360394,1.60077647,120160.0,120150.0,1e-08]
[1752532360617,1.61677647,120160.0,120150.0,1e-08]
[1752532360869,1.48765647,120160.0,120150.0,1e-08]
[1752532361095,1.2771292,120160.0,120150.0,1e-08]
[1752532361918,0.83923539,120160.0,120150.0,0.00203001]
[1752532362419,0.70490539,120160.0,120150.0,0.00203001]
[1752532362424,1.16079186,120160.0,120150.0,0.00203]
[1752532362679,1.03499186,120160.0,120150.0,0.00203]
[1752532362976,1.16411186,120160.0,120150.0,0.00203]
[1752532363214,0.17478138,120150.0,120140.0,0.0183]
[1752532363458,0.68617496,120150.0,120140.0,0.002]
[1752532363695,1.04187496,120150.0,120140.0,0.002]
[1752532363924,1.36193696,120150.0,120140.0,0.002]
[1752532364178,1.55769343,120150.0,120140.0,1e-08]
[1752532364436,0.53049592,120140.0,120130.0,1e-08]
[1752532364688,1.1870095,120140.0,120130.0,1e-08]
[1752532365204,0.49964694,120130.0,120120.0,1e-08]
[1752532365464,0.82782405,120130.0,120120.0,1e-08]
[1752532365718,0.85020948,120130.0,120120.0,1e-08]
[1752532366458,1.26883648,120130.0,120120.0,1e-08]
[1752532366677,1.42124056,120130.0,120120.0,1e-08]
[1752532366878,1.42120056,120130.0,120120.0,1e-08]
[1752532367504,1.39795648,120130.0,120120.0,1e-08]
[1752532367715,1.20319105,120130.0,120120.0,1e-08]
[1752532367924,1.21879105,120130.0,120120.0,1e-08]
[1752532368142,1.45085598,120130.0,120120.0,1e-08]
[1752532368350,0.9980014,120110.0,120100.0,1e-08]
[1752532368603,1.62223585,120110.0,120100.0,1e-08]
[1752532368821,1.51635993,120110.0,120100.0,1e-08]
[1752532369037,1.65046785,120110.0,120100.0,1e-08]
[1752532369682,1.5358887,120110.0,120100.0,1e-08]
[1752532369917,1.5358887,120110.0,120090.0,1e-08]
[1752532369918,1.19532708,120100.0,120090.0,1e-08]
[1752532370137,0.76705668,120100.0,120090.0,5.106e-05]
[1752532370347,1.19029315,120100.0,120090.0,5.106e-05]
[1752532370560,1.20593315,120100.0,120090.0,5.106e-05]
[1752532370802,1.53076962,120100.0,120090.0,1e-08]
[1752532371023,0.37020955,120090.0,120080.0,1e-08]
[1752532371243,0.51488326,120080.0,120070.0,0.0004]
[1752532371452,1.15026684,120080.0,120070.0,0.0004]
[1752532371672,1.02960984,120080.0,120070.0,0.00045104]
[1752532371919,1.15884984,120080.0,120070.0,0.00045104]
[1752532372803,1.16184984,120080.0,120070.0,0.00045104]
[1752532373016,1.24316718,120080.0,120070.0,1e-08]
[1752532373696,1.25966718,120080.0,120070.0,1e-08]
[1752532374134,1.27516718,120080.0,120070.0,1e-08]
[1752532374357,1.14592718,120080.0,120070.0,1e-08]
[1752532374575,0.83974887,120060.0,120050.0,0.0004]
[1752532374802,1.10237332,120060.0,120050.0,0.00258333]
[1752532375234,1.30570288,120060.0,120050.0,0.00258333]
[1752532375457,1.30771288,120060.0,120050.0,0.00258333]
[1752532375906,0.77030907,120060.0,120050.0,0.00358333]
[1752532376134,0.92454807,120060.0,120050.0,0.00358333]
[1752532376397,1.25143454,120060.0,120050.0,0.00358333]
[1752532376842,0.45530807,120060.0,120050.0,0.00358333]
[1752532377066,0.42629366,120060.0,120050.0,0.23020981]
[1752532377281,0.37394834,120060.0,120050.0,0.27326816]
[1752532377502,0.28320149,120060.0,120050.0,0.09001133]
[1752532377692,0.41244149,120060.0,120050.0,0.03862333]
[1752532378389,0.41256149,120060.0,120050.0,0.21355044]
[1752532378604,0.11661729,120060.0,120050.0,0.23853904]
[1752532378833,0.11661729,120060.0,120050.0,0.03862333]
[1752532378834,0.24593771,120060.0,120050.0,0.03862333]
[1752532379056,0.41248142,120060.0,120050.0,0.03862333]
[1752532379508,0.28320142,120060.0,120050.0,0.03862333]
[1752532379741,0.41248142,120060.0,120050.0,0.03862333]
[1752532380208,0.28320142,120060.0,120050.0,0.03862333]
[1752532380430,0.41248142,120060.0,120050.0,0.03862333]
[1752532380646,0.41248142,120060.0,120050.0,0.04695319]
[1752532380869,0.28320142,120060.0,120050.0,0.03862333]
[1752532381090,0.41248142,120060.0,120050.0,0.04070579]
[1752532381309,0.689385,120060.0,120050.0,0.02008333]
[1752532381555,1.059393,120060.0,120050.0,0.00155333]
[1752532381775,1.14071034,120060.0,120050.0,0.00155333]
[1752532381994,1.13570034,120060.0,120050.0,0.00371333]
[1752532382215,1.13570034,120060.0,120050.0,0.03785333]
[1752532382216,0.60018387,120060.0,120050.0,0.03785333]
[1752532382631,0.60018387,120060.0,120050.0,0.01891333]
[1752532382875,0.92502034,120060.0,120050.0,0.00371333]
[1752532383093,0.93003034,120060.0,120050.0,0.00155333]
[1752532383294,0.92707034,120060.0,120050.0,0.00371333]
[1752532383956,0.80071034,120060.0,120050.0,0.00371333]
[1752532384143,0.81711034,120060.0,120050.0,0.00155333]
[1752532384407,0.92999034,120060.0,120050.0,0.00155333]
[1752532384840,1.26999034,120060.0,120050.0,0.00155333]
[1752532385737,1.056433,120060.0,120050.0,0.00371333]
[1752532385951,0.85878653,120060.0,120050.0,0.00371333]
[1752532386174,0.85878653,120060.0,120050.0,0.01891333]
[1752532386396,0.72954653,120060.0,120050.0,0.01891333]
[1752532386628,0.85878653,120060.0,120050.0,0.03461333]
[1752532386840,0.38954653,120060.0,120050.0,0.03461333]
[1752532387053,0.51878653,120060.0,120050.0,0.03765333]
[1752532387288,0.38954653,120060.0,120050.0,0.03461333]
[1752532387506,0.719393,120060.0,120050.0,0.00155333]
[1752532387720,0.848633,120060.0,120050.0,0.00155333]
[1752532387948,0.719393,120060.0,120050.0,0.00155333]
[1752532388155,0.80071034,120060.0,120050.0,0.00155333]
[1752532388370,0.843623,120060.0,120050.0,0.00371333]
[1752532388597,0.38954653,120060.0,120050.0,0.00371333]
[1752532388792,0.38954653,120060.0,120050.0,0.01871333]
[1752532388923,0.843623,120060.0,120050.0,0.01871333]
[1752532389130,0.843623,120060.0,120050.0,0.00371333]
[1752532389748,0.92494034,120060.0,120050.0,0.00371333]
[1752532392456,0.38954653,120060.0,120050.0,0.00371333]
[1752532392670,0.36454853,120060.0,120050.0,0.2136803]
[1752532392881,0.29153058,120060.0,120050.0,0.21368044]
[1752532393103,0.42061058,120060.0,120050.0,0.22201016]
[1752532393717,0.42061058,120060.0,120050.0,0.23033981]
[1752532393928,0.10828854,120060.0,120050.0,0.24699876]
[1752532394137,0.09996,120060.0,120050.0,0.29839981]
[1752532394366,0.22904,120060.0,120050.0,0.29839981]
[1752532395820,0.10828868,120060.0,120050.0,0.29839981]
[1752532396025,0.229,120060.0,120050.0,0.29839981]
[1752532397664,0.23732868,120060.0,120050.0,0.24699876]
[1752532398090,0.229,120060.0,120050.0,0.24699876]
[1752532398303,0.09996,120060.0,120050.0,0.92637608]
[1752532398519,0.129,120060.0,120050.0,1.00772319]
[1752532398735,0.19352268,120090.0,120080.0,0.19901069]
[1752532398950,0.42252268,120090.0,120080.0,0.21637076]
[1752532399625,0.41419587,120090.0,120080.0,0.21637076]
[1752532401138,0.28515587,120090.0,120080.0,0.21637076]
[1752532401610,0.11861348,120090.0,120080.0,0.23606548]
[1752532401831,0.24757348,120090.0,120080.0,0.23606548]
[1752532402016,0.13526709,120090.0,120080.0,0.21941076]
[1752532402219,0.26418709,120090.0,120080.0,0.22773805]
[1752532402441,0.30180885,120090.0,120080.0,0.0362]
[1752532402649,0.41407558,120090.0,120080.0,0.03316]
[1752532403067,0.28515558,120090.0,120080.0,0.2080434]
[1752532403289,0.41407558,120090.0,120080.0,0.21637111]
[1752532403702,0.41403558,120090.0,120080.0,0.22469861]
[1752532403865,0.24749382,120090.0,120080.0,0.23606597]
[1752532404088,0.26414681,120090.0,120080.0,0.24439326]
[1752532404292,0.43068857,120090.0,120080.0,0.22773861]
[1752532404453,0.43064919,120090.0,120080.0,0.22773875]
[1752532404664,0.43064919,120090.0,120080.0,0.23302632]
[1752532404870,0.42232252,120090.0,120080.0,0.23302632]
[1752532405277,0.42232252,120090.0,120080.0,0.22469875]
[1752532405853,0.29348252,120090.0,120080.0,0.23302625]
[1752532406068,0.42232252,120090.0,120080.0,0.24441361]
[1752532406288,0.25578021,120090.0,120080.0,0.24441312]
[1752532406649,0.26410722,120090.0,120080.0,0.24441312]
[1752532406849,0.43064898,120090.0,120080.0,0.22775847]
[1752532407105,0.43064898,120090.0,120080.0,0.2360859]
[1752532407385,0.43064898,120090.0,120080.0,0.24441319]
[1752532407876,0.43897606,120090.0,120080.0,0.24441319]
[1752532409024,0.26410722,120090.0,120080.0,0.24441319]
[1752532409239,0.11028653,120090.0,120080.0,0.24441319]
[1752532409478,0.10196,120090.0,120080.0,0.24441319]
[1752532409695,0.1308,120090.0,120080.0,0.56924966]
[1752532409910,0.1308,120090.0,120080.0,0.24441319]
[1752532410566,0.1308,120090.0,120080.0,0.24641319]
[1752532410803,0.18519544,120090.0,120080.0,0.03516]
[1752532411020,0.18519544,120090.0,120080.0,0.002]
[1752532411021,0.50682517,120090.0,120080.0,0.002]
[1752532411238,0.52192517,120090.0,120080.0,0.002]
[1752532411475,0.75072517,120090.0,120080.0,0.002]
[1752532411880,0.02498215,120080.0,120070.0,0.20820841]
[1752532412109,0.19986534,120080.0,120070.0,0.20901264]
[1752532412325,0.19153861,120080.0,120070.0,0.20901299]
[1752532412823,0.02498264,120080.0,120070.0,0.22566909]
[1752532413454,0.19986604,120080.0,120070.0,0.20901299]
[1752532413662,0.32866604,120080.0,120070.0,0.20901299]
[1752532414074,0.32866604,120080.0,120070.0,0.21734104]
[1752532414719,0.32866604,120080.0,120070.0,0.21934104]
[1752532415432,0.32866604,120080.0,120070.0,0.21101299]
[1752532415644,0.32033861,120080.0,120070.0,0.2026848]
[1752532415882,0.18321104,120080.0,120070.0,0.18738494]
[1752532416090,0.31407104,120080.0,120070.0,0.19571327]
[1752532416507,0.14751507,120080.0,120070.0,0.20404139]
[1752532416706,0.14545507,120080.0,120070.0,0.21236937]
[1752532416943,0.3203384,120080.0,120070.0,0.21236937]
[1752532417178,0.02498278,120080.0,120070.0,0.21236937]
[1752532417396,0.002,120090.0,120080.0,0.18321069]
[1752532417602,0.002,120090.0,120080.0,0.22399798]
[1752532417603,0.10196,120090.0,120080.0,0.22399798]
[1752532417830,0.2389666,120090.0,120080.0,0.22705798]
[1752532419802,0.10196,120090.0,120080.0,0.22705798]
[1752532420026,0.002,120090.0,120080.0,0.59098174]
[1752532420241,0.1306,120090.0,120080.0,0.59098174]
[1752532420957,0.002,120090.0,120080.0,0.93098174]
[1752532421152,0.13064,120090.0,120080.0,0.93298174]
[1752532421895,0.13064,120090.0,120080.0,0.93098174]
[1752532422360,0.002,120090.0,120080.0,0.93098174]
[1752532422603,0.1306,120090.0,120080.0,0.94552259]
[1752532423031,0.1306,120090.0,120080.0,1.0268697]
[1752532423243,0.1306,120090.0,120080.0,1.0298697]
[1752532423448,0.1306,120090.0,120080.0,1.0268697]
[1752532423863,0.1306,120090.0,120080.0,1.0308697]
[1752532426186,0.12061046,120090.0,120080.0,1.0308697]
[1752532428546,0.002,120110.0,120100.0,0.19150622]
[1752532428772,0.13044,120110.0,120100.0,0.2343151]
[1752532429737,0.13044,120110.0,120100.0,0.23446843]
[1752532429885,0.13044,120110.0,120100.0,0.23646843]
[1752532430117,0.13876507,120110.0,120100.0,0.23646843]
[1752532430325,0.14709021,120110.0,120100.0,0.23646843]
[1752532430550,0.13876507,120110.0,120100.0,0.23646843]
[1752532431348,0.002,120110.0,120100.0,0.23646843]
[1752532431515,0.1304,120110.0,120100.0,0.26766843]
[1752532432793,0.13036,120110.0,120100.0,0.27072843]
[1752532435092,0.002,120110.0,120100.0,0.25226843]
[1752532435297,0.13032,120110.0,120100.0,0.25226843]
[1752532435500,0.002,120110.0,120100.0,0.25226843]
[1752532435741,0.13032,120110.0,120100.0,0.25226843]
[1752532435930,0.13032,120110.0,120100.0,0.27077843]
[1752532436144,0.002,120110.0,120100.0,0.27077843]
[1752532436357,0.13028,120110.0,120100.0,0.5956149]
[1752532436566,0.002,120110.0,120100.0,0.5956149]
[1752532436782,0.13028,120110.0,120100.0,0.27077843]
[1752532437405,0.002,120110.0,120100.0,0.5956149]
[1752532437658,0.002,120110.0,120100.0,0.95015575]
[1752532438041,0.002,120110.0,120100.0,1.03150286]
[1752532438905,0.002,120110.0,120100.0,1.15974286]
[1752532439116,0.002,120110.0,120100.0,1.03150286]
[1752532439353,0.002,120110.0,120100.0,1.15970286]
[1752532439576,0.002,120110.0,120100.0,1.15770286]
[1752532439778,0.002,120110.0,120100.0,1.16070286]
[1752532440406,0.002,120110.0,120100.0,1.03250286]
[1752532440614,0.002,120110.0,120100.0,1.16070286]
[1752532441038,0.002,120110.0,120100.0,1.16066286]
[1752532444765,0.002,120110.0,120100.0,1.03250286]
[1752532445212,0.01032507,120110.0,120100.0,0.70766639]
[1752532445436,0.19029612,120110.0,120100.0,0.17800754]
[1752532445684,0.36513577,120110.0,120100.0,0.17757076]
[1752532445872,0.35681056,120110.0,120100.0,0.18589694]
[1752532446127,0.22877056,120110.0,120100.0,0.18589694]
[1752532446360,0.35685056,120110.0,120100.0,0.19422298]
[1752532446596,0.34852514,120110.0,120100.0,0.17800761]
[1752532447024,0.34852514,120110.0,120100.0,0.17500761]
[1752532447243,0.34852514,120110.0,120100.0,0.00215333]
[1752532447921,0.22044514,120110.0,120100.0,0.18533379]
[1752532448146,0.34852514,120110.0,120100.0,0.18533379]
[1752532449187,0.34852514,120110.0,120100.0,0.17700761]
[1752532449423,0.34019965,120110.0,120100.0,0.17700761]
[1752532450349,0.33187402,120110.0,120100.0,0.01047972]
[1752532451286,0.33187402,120110.0,120100.0,0.17700761]
[1752532451494,0.33187402,120110.0,120100.0,0.01047972]
[1752532451714,0.33187402,120110.0,120100.0,0.18533393]
[1752532452836,0.20379402,120110.0,120100.0,0.18533393]
[1752532453313,0.33175402,120110.0,120100.0,0.18533393]
[1752532453530,0.33175402,120110.0,120100.0,0.17700761]
[1752532454472,0.33175402,120110.0,120100.0,0.18533393]
[1752532454654,0.33175402,120110.0,120100.0,0.19366018]
[1752532455333,0.33175402,120110.0,120100.0,0.18533393]
[1752532456060,0.33175402,120110.0,120100.0,0.19366018]
[1752532456294,0.03728,120110.0,120100.0,0.21031212]
[1752532456510,0.37330147,120110.0,120100.0,0.21031212]
[1752532456725,0.36497626,120110.0,120100.0,0.20198622]
[1752532457344,0.05393049,120110.0,120100.0,0.24716367]
[1752532457556,0.22319542,120110.0,120100.0,0.23883777]
[1752532457775,0.1846414,120110.0,120100.0,0.24716367]
[1752532458226,0.18464133,120110.0,120100.0,0.24716367]
[1752532459412,0.18464126,120110.0,120100.0,0.24716367]
[1752532459608,0.19296682,120110.0,120100.0,0.24716367]
[1752532460126,0.19288682,120110.0,120100.0,0.21031212]
[1752532460328,0.16791035,120110.0,120100.0,0.21031212]
[1752532460530,0.1762357,120110.0,120100.0,0.21031212]
[1752532460829,0.15958514,120110.0,120100.0,0.21031212]
[1752532461042,0.14026514,120110.0,120100.0,0.21234212]
[1752532461865,0.14022514,120110.0,120100.0,0.28302391]
[1752532462461,0.01238514,120110.0,120100.0,0.28302391]
[1752532462661,0.14022514,120110.0,120100.0,0.21234212]
[1752532462867,0.14855042,120110.0,120100.0,0.21234212]
[1752532463071,0.1319,120110.0,120100.0,0.21234212]
[1752532463306,0.14022507,120110.0,120100.0,0.21234212]
[1752532463522,0.01238507,120110.0,120100.0,0.21234212]
[1752532463732,0.14022507,120110.0,120100.0,0.21234212]
[1752532463958,0.1319,120110.0,120100.0,0.28302391]
[1752532464729,0.14022507,120110.0,120100.0,0.28302391]
[1752532464939,0.14855028,120110.0,120100.0,0.28302391]
[1752532465359,0.15687563,120110.0,120100.0,0.28302391]
[1752532465567,0.16005563,120110.0,120100.0,0.28302391]
[1752532465774,0.12984,120110.0,120100.0,0.28302391]
[1752532465977,0.13816507,120110.0,120100.0,0.28302391]
[1752532466613,0.13816507,120110.0,120100.0,0.21234212]
[1752532467037,0.12984,120110.0,120100.0,0.21234212]
[1752532467216,0.13816507,120110.0,120100.0,0.21234212]
[1752532467420,0.12984,120110.0,120100.0,0.21234212]
[1752532470042,0.13816507,120110.0,120100.0,0.21234212]
[1752532470383,0.12984,120110.0,120100.0,0.21234212]